fUST/lending_fUST_20240112
["ID","MTS","AMOUNT","RATE_DAILY","PERIOD"]
[311365626,1705068643355,-500.0,0.00024656,2]
[311365628,1705068643364,-1223.56,0.00024656,2]
[311365630,1705068643373,-500.0,0.00024656,2]
[311365632,1705068643382,-727.08,0.00024656,2]
[311365634,1705068643391,-500.0,0.00024656,2]
[311365636,1705068643401,-258.57,0.00024656,2]
[311365638,1705068643410,-1145.62,0.00024656,2]
[311365640,1705068643419,-500.0,0.00024656,2]
[311365642,1705068643428,-500.0,0.00024656,2]
[311365644,1705068643437,-500.0,0.00024656,2]
[311365646,1705068643446,-500.0,0.00024656,2]
[311365648,1705068643455,-500.0,0.00024657,2]
[311365650,1705068643464,-500.0,0.00024657,2]
[311365652,1705068643478,-515.36,0.00024657,2]
[311365654,1705068643487,-500.0,0.00024657,2]
[311365656,1705068643497,-1156.51,0.00024657,2]
[311365658,1705068643506,-500.0,0.00024657,2]
[311365660,1705068643515,-3722.52,0.00024657,2]
[311365662,1705068643524,-8597.27,0.00024657,2]
[311365664,1705068643533,-17351.31,0.00024657,2]
[311365666,1705068643543,-214.58179115,0.00024657,2]
[311365668,1705068643552,-534.01,0.00024657,2]
[311365678,1705068643634,-4871.89,0.00024657,2]
[311365680,1705068643644,-856.72,0.00024657,2]
[311365682,1705068643653,-984.16,0.00024657,2]
[311365684,1705068643663,-1516.79,0.00024657,2]
[311365686,1705068643672,-1181.57,0.00024686,2]
[311365689,1705068643684,-515.21,0.00024686,2]
[311365692,1705068643693,-500.0,0.00024686,2]
[311365694,1705068643702,-500.0,0.00024686,2]
[311365697,1705068643712,-760.35,0.00024686,2]
[311365699,1705068643721,-590.71,0.00024686,2]
[311365700,1705068643730,-8746.44340822,0.00024883,2]
[311365703,1705068643739,-1480.14,0.00024929,2]
[311365705,1705068643749,-648.16,0.00024929,2]
[311365706,1705068643759,-1224.69,0.00024929,2]
[311365708,1705068643768,-500.0,0.00024929,2]
[311365710,1705068643777,-822.93,0.00024929,2]
[311365712,1705068643786,-3196.79,0.00024929,2]
[311365715,1705068643795,-6635.3,0.00024929,2]
[311365717,1705068643804,-3383.51,0.00024929,2]
[311365718,1705068643814,-500.0,0.0002493,2]
[311365720,1705068643823,-500.0,0.0002493,2]
[311365723,1705068643832,-500.0,0.0002493,2]
[311365725,1705068643841,-506.52956934,0.0002493,2]
[311365727,1705068643850,-1223.56,0.0002493,2]
[311365729,1705068643860,-505.57069525,0.0002493,2]
[311365731,1705068643869,-727.08,0.0002493,2]
[311365733,1705068643878,-500.0,0.0002493,2]
[311365735,1705068643886,-1145.62,0.0002493,2]
[311365737,1705068643896,-500.0,0.0002493,2]
[311365739,1705068643906,-500.0,0.0002493,2]
[311365741,1705068643915,-500.0,0.0002493,2]
[311365743,1705068643926,-500.0,0.0002493,2]
[311365745,1705068643936,-1402.20804,0.0002493,2]
[311365747,1705068643944,-1402.20804,0.0002493,2]
[311365748,1705068643956,-1516.32,0.0002493,2]
[311365751,1705068643965,-1516.32,0.0002493,2]
[311365753,1705068643975,-500.0,0.00024931,2]
[311365755,1705068643985,-500.0,0.00024931,2]
[311365757,1705068643996,-515.36,0.00024931,2]
[311365758,1705068644005,-500.0,0.00024931,2]
[311365761,1705068644014,-1156.51,0.00024931,2]
[311365762,1705068644023,-500.0,0.00024931,2]
[311365765,1705068644032,-3722.52,0.00024931,2]
[311365767,1705068644041,-8597.27,0.00024931,2]
[311365769,1705068644053,-17351.31,0.00024931,2]
[311365770,1705068644063,-534.01,0.00024931,2]
[311365772,1705068644072,-4871.89,0.00024931,2]
[311365775,1705068644081,-856.72,0.00024931,2]
[311365777,1705068644090,-984.16,0.00024931,2]
[311365779,1705068644099,-1516.79,0.00024931,2]
[311365781,1705068644108,-1181.57,0.0002496,2]
[311365783,1705068644117,-515.21,0.0002496,2]
[311365785,1705068644127,-500.0,0.0002496,2]
[311365787,1705068644136,-500.0,0.0002496,2]
[311365789,1705068644145,-760.35,0.0002496,2]
[311365791,1705068644154,-590.71,0.0002496,2]
[311365793,1705068644167,-155.00310006,0.00025,2]
[311365795,1705068644181,-7288.0,0.00025,2]
[311365797,1705068644191,-677.45880314,0.00025,2]
[311365799,1705068644200,-4711.08145103,0.00025,2]
[311365801,1705068644209,-1480.14,0.00025203,2]
[311365803,1705068644218,-648.16,0.00025203,2]
[311365805,1705068644228,-1224.69,0.00025203,2]
[311365807,1705068644238,-500.0,0.00025203,2]
[311365809,1705068644247,-822.93,0.00025203,2]
[311365811,1705068644256,-3196.79,0.00025203,2]
[311365813,1705068644265,-6635.3,0.00025203,2]
[311365815,1705068644274,-3383.51,0.00025203,2]
[311365817,1705068644283,-409.83211146,0.00025204,2]
[311365819,1705068644292,-372.97317806,0.00025204,2]
[311365821,1705068644303,-1223.56,0.00025204,2]
[311365823,1705068644312,-727.08,0.00025204,2]
[311365825,1705068644321,-500.0,0.00025204,2]
[311365827,1705068644330,-1145.62,0.00025204,2]
[311365829,1705068644339,-500.0,0.00025204,2]
[311365831,1705068644348,-500.0,0.00025204,2]
[311365833,1705068644357,-500.0,0.00025204,2]
[311365835,1705068644367,-500.0,0.00025204,2]
[311365837,1705068644378,-500.0,0.00025205,2]
[311365839,1705068644388,-500.0,0.00025205,2]
[311365841,1705068644397,-515.36,0.00025205,2]
[311365843,1705068644406,-500.0,0.00025205,2]
[311365845,1705068644415,-1156.51,0.00025205,2]
[311365847,1705068644424,-500.0,0.00025205,2]
[311365849,1705068644433,-3722.52,0.00025205,2]
[311365851,1705068644442,-8597.27,0.00025205,2]
[311365853,1705068644451,-17351.31,0.00025205,2]
[311365855,1705068644461,-534.01,0.00025205,2]
[311365857,1705068644470,-4871.89,0.00025205,2]
[311365859,1705068644479,-856.72,0.00025205,2]
[311365861,1705068644489,-984.16,0.00025205,2]
[311365863,1705068644499,-1516.79,0.00025205,2]
[311365865,1705068644509,-1181.57,0.00025234,2]
[311365867,1705068644518,-515.21,0.00025234,2]
[311365869,1705068644527,-500.0,0.00025234,2]
[311365871,1705068644536,-500.0,0.00025234,2]
[311365873,1705068644546,-760.35,0.00025234,2]
[311365874,1705068644555,-590.71,0.00025234,2]
[311365876,1705068644564,-1480.14,0.00025477,2]
[311365878,1705068644574,-648.16,0.00025477,2]
[311365880,1705068644583,-1224.69,0.00025477,2]
[311365882,1705068644592,-500.0,0.00025477,2]
[311365884,1705068644601,-822.93,0.00025477,2]
[311365886,1705068644610,-3196.79,0.00025477,2]
[311365888,1705068644619,-4109.82109167,0.00025477,2]
[311365984,1705068645675,-309.82961307,0.00019715,2]
[311365986,1705068645686,-437.3876237,0.00019723,2]
[311365988,1705068645695,-40.93276348,0.0002,2]
[311365990,1705068645706,-182.96591941,0.0002,2]
[311365992,1705068645716,-500.0,0.00021917,2]
[311365994,1705068645725,-319.28218975,0.0002219,2]
[311365996,1705068645734,-500.0,0.0002219,2]
[311365998,1705068645743,-500.0,0.00022191,2]
[311366000,1705068645754,-500.0,0.00022464,2]
[311366002,1705068645763,-500.0,0.00022465,2]
[311366004,1705068645773,-500.0,0.00022738,2]
[311366006,1705068645782,-225.06263195,0.00023012,2]
[311366008,1705068645791,-188.50777354,0.00023558,2]
[311366010,1705068645801,-581.76926559,0.00024656,2]
[311366012,1705068645809,-2525.47890833,0.00025477,2]
[311366014,1705068645819,-3383.51,0.00025477,2]
[311366016,1705068645828,-1223.56,0.00025478,2]
[311366018,1705068645837,-727.08,0.00025478,2]
[311366020,1705068645846,-500.0,0.00025478,2]
[311366023,1705068645855,-1145.62,0.00025478,2]
[311366026,1705068645865,-500.0,0.00025478,2]
[311366029,1705068645874,-500.0,0.00025478,2]
[311366032,1705068645883,-500.0,0.00025478,2]
[311366035,1705068645892,-500.0,0.00025478,2]
[311366037,1705068645901,-500.0,0.00025479,2]
[311366039,1705068645910,-500.0,0.00025479,2]
[311366041,1705068645920,-515.36,0.00025479,2]
[311366043,1705068645929,-500.0,0.00025479,2]
[311366046,1705068645939,-1156.51,0.00025479,2]
[311366048,1705068645948,-260.2604117,0.00025479,2]
[311366050,1705068645957,-3722.52,0.00025479,2]
[311366052,1705068645967,-8597.27,0.00025479,2]
[311366055,1705068645976,-17351.31,0.00025479,2]
[311366058,1705068645986,-534.01,0.00025479,2]
[311366063,1705068646003,-4871.89,0.00025479,2]
[311366066,1705068646018,-856.72,0.00025479,2]
[311366070,1705068646032,-984.16,0.00025479,2]
[311366074,1705068646043,-1516.79,0.00025479,2]
[311366078,1705068646057,-1402.20804,0.00025508,2]
[311366083,1705068646070,-1402.20804,0.00025508,2]
[311366089,1705068646084,-1516.32,0.00025508,2]
[311366095,1705068646097,-1516.32,0.00025508,2]
[311366101,1705068646110,-1181.57,0.00025508,2]
[311366105,1705068646121,-515.21,0.00025508,2]
[311366109,1705068646134,-500.0,0.00025508,2]
[311366113,1705068646148,-500.0,0.00025508,2]
[311366116,1705068646161,-760.35,0.00025508,2]
[311366120,1705068646175,-590.71,0.00025508,2]
[311366123,1705068646187,-155.0991883,0.00025651,2]
[311366126,1705068646197,-159.614671,0.00025651,2]
[311366129,1705068646213,-184.9,0.00025653,2]
[311366131,1705068646226,-184.9,0.00025653,2]
[311366134,1705068646239,-155.00310006,0.00025653,2]
[311366136,1705068646252,-641.73821457,0.00025653,2]
[311366138,1705068646265,-172.23474005,0.00025653,2]
[311366141,1705068646278,-200.0,0.00025653,2]
[311366143,1705068646293,-1822.38176649,0.00025653,2]
[311366146,1705068646307,-300.0,0.00025653,2]
[311366148,1705068646320,-2080.28320628,0.00025653,2]
[311366150,1705068646331,-156.10305796,0.00025653,2]
[311366152,1705068646341,-537.44070193,0.00025653,2]
[311366154,1705068646353,-155.06418321,0.00025653,2]
[311366157,1705068646367,-205.77922855,0.00025653,2]
[311366159,1705068646379,-211.29574429,0.00025653,2]
[311366161,1705068646392,-194.15327733,0.00025653,2]
[311366164,1705068646403,-166.49187593,0.00025653,2]
[311366166,1705068646414,-196.88588059,0.00025653,2]
[311366168,1705068646425,-687.59711705,0.000257,2]
[311366170,1705068646437,-1480.14,0.00025751,2]
[311366174,1705068646460,-648.16,0.00025751,2]
[311366177,1705068646482,-1224.69,0.00025751,2]
[311366180,1705068646501,-500.0,0.00025751,2]
[311366183,1705068646516,-822.93,0.00025751,2]
[311366185,1705068646530,-3196.79,0.00025751,2]
[311366187,1705068646545,-6635.3,0.00025751,2]
[311366190,1705068646559,-3383.51,0.00025751,2]
[311366192,1705068646572,-1223.56,0.00025752,2]
[311366195,1705068646586,-727.08,0.00025752,2]
[311366196,1705068646599,-500.0,0.00025752,2]
[311366198,1705068646611,-1145.62,0.00025752,2]
[311366200,1705068646623,-500.0,0.00025752,2]
[311366203,1705068646638,-500.0,0.00025752,2]
[311366205,1705068646650,-500.0,0.00025752,2]
[311366208,1705068646663,-500.0,0.00025752,2]
[311366212,1705068646676,-500.0,0.00025753,2]
[311366214,1705068646688,-561.79104084,0.00025753,2]
[311366216,1705068646697,-515.36,0.00025753,2]
[311366217,1705068646707,-500.0,0.00025753,2]
[311366219,1705068646716,-1156.51,0.00025753,2]
[311366221,1705068646726,-3722.52,0.00025753,2]
[311366223,1705068646735,-8597.27,0.00025753,2]
[311366225,1705068646744,-17351.31,0.00025753,2]
[311366227,1705068646755,-534.01,0.00025753,2]
[311366229,1705068646764,-4871.89,0.00025753,2]
[311366231,1705068646773,-856.72,0.00025753,2]
[311366233,1705068646784,-984.16,0.00025753,2]
[311366235,1705068646793,-1516.79,0.00025753,2]
[311366237,1705068646802,-1181.57,0.00025782,2]
[311366239,1705068646811,-515.21,0.00025782,2]
[311366241,1705068646821,-500.0,0.00025782,2]
[311366243,1705068646830,-500.0,0.00025782,2]
[311366245,1705068646839,-760.35,0.00025782,2]
[311366247,1705068646848,-590.71,0.00025782,2]
[311366249,1705068646859,-151.0,0.00025784,2]
[311366251,1705068646868,-220.9698743,0.00025998,2]
[311366253,1705068646877,-74239.7178675,0.00026,18]
[311366255,1705068646886,-252.385167,0.00026,2]
[311366257,1705068646895,-252.385167,0.00026,2]
[311366258,1705068646905,-1273.38801722,0.00026,2]
[311366261,1705068646917,-1480.14,0.00026025,2]
[311366262,1705068646926,-648.16,0.00026025,2]
[311366281,1705068647052,-1224.69,0.00026025,2]
[311366284,1705068647109,-500.0,0.00026025,2]
[311366285,1705068647119,-822.93,0.00026025,2]
[311366287,1705068647128,-3196.79,0.00026025,2]
[311366289,1705068647136,-6635.3,0.00026025,2]
[311366291,1705068647146,-3383.51,0.00026025,2]
[311366293,1705068647155,-1223.56,0.00026026,2]
[311366295,1705068647164,-727.08,0.00026026,2]
[311366297,1705068647173,-500.0,0.00026026,2]
[311366299,1705068647182,-1145.62,0.00026026,2]
[311366301,1705068647190,-500.0,0.00026026,2]
[311366303,1705068647200,-500.0,0.00026026,2]
[311366305,1705068647209,-500.0,0.00026026,2]
[311366307,1705068647220,-500.0,0.00026026,2]
[311366309,1705068647230,-184.9,0.00026026,2]
[311366311,1705068647238,-184.9,0.00026026,2]
[311366313,1705068647247,-500.0,0.00026027,2]
[311366314,1705068647257,-515.36,0.00026027,2]
[311366316,1705068647267,-500.0,0.00026027,2]
[311366318,1705068647277,-1156.51,0.00026027,2]
[311366319,1705068647286,-3722.52,0.00026027,2]
[311366320,1705068647296,-8597.27,0.00026027,2]
[311366321,1705068647307,-17351.31,0.00026027,2]
[311366322,1705068647316,-534.01,0.00026027,2]
[311366323,1705068647326,-4871.89,0.00026027,2]
[311366324,1705068647335,-856.72,0.00026027,2]
[311366325,1705068647346,-984.16,0.00026027,2]
[311366326,1705068647355,-1516.79,0.00026027,2]
[311366327,1705068647366,-1402.20804,0.00026027,2]
[311366328,1705068647376,-1402.20804,0.00026027,2]
[311366329,1705068647385,-1516.32,0.00026027,2]
[311366330,1705068647395,-1516.32,0.00026027,2]
[311366331,1705068647405,-1181.57,0.00026056,2]
[311366332,1705068647415,-515.21,0.00026056,2]
[311366333,1705068647424,-500.0,0.00026056,2]
[311366334,1705068647434,-500.0,0.00026056,2]
[311366335,1705068647443,-760.35,0.00026056,2]
[311366336,1705068647453,-590.71,0.00026056,2]
[311366337,1705068647462,-620.33379625,0.00026268,2]
[311366338,1705068647472,-1480.14,0.00026299,2]
[311366339,1705068647481,-648.16,0.00026299,2]
[311366340,1705068647491,-1224.69,0.00026299,2]
[311366341,1705068647500,-258.50876081,0.00026299,2]
[311366342,1705068647511,-822.93,0.00026299,2]
[311366343,1705068647520,-3196.79,0.00026299,2]
[311366344,1705068647529,-6635.3,0.00026299,2]
[311366345,1705068647539,-3383.51,0.00026299,2]
[311366346,1705068647549,-1223.56,0.000263,2]
[311366347,1705068647558,-727.08,0.000263,2]
[311366348,1705068647568,-500.0,0.000263,2]
[311366349,1705068647577,-1145.62,0.000263,2]
[311366350,1705068647586,-389.89239221,0.000263,2]
[311366351,1705068647595,-500.0,0.000263,2]
[311366352,1705068647605,-500.0,0.000263,2]
[311366354,1705068647615,-500.0,0.000263,2]
[311366355,1705068647625,-647.47287958,0.00026301,2]
[311366357,1705068647634,-515.36,0.00026301,2]
[311366359,1705068647644,-500.0,0.00026301,2]
[311366361,1705068647653,-1156.51,0.00026301,2]
[311366363,1705068647662,-3722.52,0.00026301,2]
[311366365,1705068647672,-8597.27,0.00026301,2]
[311366367,1705068647683,-17351.31,0.00026301,2]
[311366369,1705068647693,-534.01,0.00026301,2]
[311366371,1705068647703,-4871.89,0.00026301,2]
[311366373,1705068647712,-856.72,0.00026301,2]
[311366375,1705068647721,-984.16,0.00026301,2]
[311366377,1705068647731,-1516.79,0.00026301,2]
[311366379,1705068647740,-1181.57,0.0002633,2]
[311366381,1705068647750,-515.21,0.0002633,2]
[311366383,1705068647759,-500.0,0.0002633,2]
[311366385,1705068647768,-500.0,0.0002633,2]
[311366387,1705068647777,-760.35,0.0002633,2]
[311366389,1705068647786,-590.71,0.0002633,2]
[311366391,1705068647795,-1480.14,0.00026573,2]
[311366393,1705068647804,-648.16,0.00026573,2]
[311366395,1705068647814,-1224.69,0.00026573,2]
[311366397,1705068647823,-822.93,0.00026573,2]
[311366399,1705068647832,-3196.79,0.00026573,2]
[311366401,1705068647842,-6635.3,0.00026573,2]
[311366403,1705068647851,-3383.51,0.00026573,2]
[311366405,1705068647861,-1223.56,0.00026574,2]
[311366407,1705068647870,-727.08,0.00026574,2]
[311366409,1705068647879,-500.0,0.00026574,2]
[311366411,1705068647889,-1145.62,0.00026574,2]
[311366413,1705068647898,-475.37165114,0.00026574,2]
[311366415,1705068647906,-500.0,0.00026574,2]
[311366417,1705068647915,-500.0,0.00026574,2]
[311366419,1705068647924,-515.36,0.00026575,2]
[311366421,1705068647933,-500.0,0.00026575,2]
[311366423,1705068647942,-1156.51,0.00026575,2]
[311366424,1705068647951,-3722.52,0.00026575,2]
[311366426,1705068647960,-8597.27,0.00026575,2]
[311366428,1705068647969,-17351.31,0.00026575,2]
[311366430,1705068647979,-534.01,0.00026575,2]
[311366432,1705068647988,-4871.89,0.00026575,2]
[311366434,1705068647998,-856.72,0.00026575,2]
[311366437,1705068648009,-984.16,0.00026575,2]
[311366439,1705068648018,-1516.79,0.00026575,2]
[311366441,1705068648027,-1181.57,0.00026604,2]
[311366443,1705068648037,-515.21,0.00026604,2]
[311366445,1705068648046,-500.0,0.00026604,2]
[311366446,1705068648055,-500.0,0.00026604,2]
[311366448,1705068648064,-760.35,0.00026604,2]
[311366450,1705068648074,-590.71,0.00026604,2]
[311366452,1705068648083,-309.96908058,0.00026847,2]
[311366454,1705068648092,-1480.14,0.00026847,2]
[311366456,1705068648101,-648.16,0.00026847,2]
[311366458,1705068648111,-1224.69,0.00026847,2]
[311366460,1705068648120,-822.93,0.00026847,2]
[311366462,1705068648129,-3196.79,0.00026847,2]
[311366464,1705068648138,-6635.3,0.00026847,2]
[311366466,1705068648147,-3383.51,0.00026847,2]
[311366468,1705068648156,-1223.56,0.00026848,2]
[311366470,1705068648165,-727.08,0.00026848,2]
[311366472,1705068648175,-500.0,0.00026848,2]
[311366474,1705068648184,-1145.62,0.00026848,2]
[311366476,1705068648193,-500.0,0.00026848,2]
[311366478,1705068648203,-500.0,0.00026848,2]
[311366480,1705068648212,-515.36,0.00026849,2]
[311366482,1705068648221,-500.0,0.00026849,2]
[311366484,1705068648231,-1156.51,0.00026849,2]
[311366486,1705068648240,-3722.52,0.00026849,2]
[311366488,1705068648252,-8597.27,0.00026849,2]
[311366490,1705068648262,-17351.31,0.00026849,2]
[311366493,1705068648271,-534.01,0.00026849,2]
[311366495,1705068648281,-4871.89,0.00026849,2]
[311366497,1705068648292,-856.72,0.00026849,2]
[311366499,1705068648302,-984.16,0.00026849,2]
[311366500,1705068648312,-1516.79,0.00026849,2]
[311366502,1705068648321,-181.32419802,0.00026849,4]
[311366505,1705068648331,-549.82728372,0.00026849,4]
[311366506,1705068648340,-500.0,0.00026849,4]
[311366508,1705068648349,-500.0,0.00026849,4]
[311366510,1705068648358,-500.0,0.00026849,4]
[311366512,1705068648368,-651.92460585,0.00026849,4]
[311366514,1705068648377,-219.27132606,0.00026849,4]
[311366516,1705068648386,-500.0,0.00026849,4]
[311366518,1705068648396,-642.72245123,0.00026849,4]
[311366520,1705068648406,-500.0,0.00026849,4]
[311366522,1705068648415,-500.0,0.00026849,4]
[311366524,1705068648424,-500.0,0.00026849,4]
[311366526,1705068648434,-500.0,0.00026849,4]
[311366528,1705068648443,-500.0,0.00026849,4]
[311366531,1705068648453,-412.63601974,0.00026849,4]
[311366533,1705068648462,-500.0,0.00026849,4]
[311366534,1705068648471,-317.26226376,0.00026849,4]
[311366536,1705068648480,-500.0,0.00026849,4]
[311366538,1705068648490,-500.0,0.00026849,4]
[311366540,1705068648501,-500.0,0.00026849,4]
[311366542,1705068648509,-500.0,0.00026849,4]
[311366544,1705068648518,-500.0,0.00026849,4]
[311366546,1705068648527,-500.0,0.00026849,4]
[311366548,1705068648536,-500.0,0.00026849,4]
[311366550,1705068648546,-500.0,0.00026849,4]
[311366552,1705068648555,-500.0,0.00026849,4]
[311366554,1705068648565,-500.0,0.00026849,4]
[311366556,1705068648574,-500.0,0.00026849,4]
[311366558,1705068648583,-500.0,0.00026849,4]
[311366559,1705068648592,-500.0,0.00026849,4]
[311366562,1705068648603,-500.0,0.00026849,4]
[311366563,1705068648611,-500.0,0.00026849,4]
[311366566,1705068648621,-500.0,0.00026849,4]
[311366567,1705068648631,-500.0,0.00026849,4]
[311366569,1705068648640,-500.0,0.00026849,4]
[311366571,1705068648650,-500.0,0.00026849,4]
[311366574,1705068648659,-500.0,0.00026849,4]
[311366575,1705068648668,-500.0,0.00026849,4]
[311366577,1705068648678,-1000.0,0.00026876,2]
[311366579,1705068648687,-1181.57,0.00026878,2]
[311366581,1705068648696,-515.21,0.00026878,2]
[311366583,1705068648705,-500.0,0.00026878,2]
[311366585,1705068648714,-500.0,0.00026878,2]
[311366587,1705068648723,-760.35,0.00026878,2]
[311366589,1705068648732,-590.71,0.00026878,2]
[311366591,1705068648742,-161.56413426,0.00026898,2]
[311366593,1705068648751,-184.9,0.00026899,2]
[311366595,1705068648760,-184.9,0.00026899,2]
[311366597,1705068648769,-873.22285647,0.00026899,2]
[311366599,1705068648778,-343.49604143,0.000269,7]
[311366601,1705068648788,-1000.0,0.00026925,2]
[311366603,1705068648797,-310.03721623,0.00027,10]
[311366605,1705068648806,-289.5463958,0.00027,2]
[311366607,1705068648815,-460.75992736,0.00027,2]
[311366609,1705068648824,-1500.0,0.00027,2]
[311366611,1705068648833,-151.0,0.00027033,2]
[311366613,1705068648842,-1402.20804,0.00027055,2]
[311366615,1705068648852,-1402.20804,0.00027055,2]
[311366617,1705068648861,-1516.32,0.00027055,2]
[311366619,1705068648870,-1516.32,0.00027055,2]
[311366621,1705068648879,-1293.98334762,0.00027121,2]
[311366623,1705068648888,-857.46198736,0.00027121,2]
[311366625,1705068648898,-14605.2160733,0.00027121,2]
[311366627,1705068648907,-1701.44380741,0.00027121,2]
[311366629,1705068648919,-470.84194551,0.00027121,2]
[311366631,1705068648928,-1480.14,0.00027121,2]
[311366633,1705068648937,-648.16,0.00027121,2]
[311366635,1705068648946,-1224.69,0.00027121,2]
[311366637,1705068648955,-822.93,0.00027121,2]
[311366639,1705068648966,-3196.79,0.00027121,2]
[311366641,1705068648976,-6635.3,0.00027121,2]
[311366643,1705068648986,-3383.51,0.00027121,2]
[311366645,1705068648998,-1223.56,0.00027122,2]
[311366647,1705068649008,-727.08,0.00027122,2]
[311366649,1705068649018,-1145.62,0.00027122,2]
[311366651,1705068649028,-532.14334872,0.00027122,2]
[311366653,1705068649037,-500.0,0.00027122,2]
[311366655,1705068649046,-515.36,0.00027123,2]
[311366657,1705068649055,-349.56785035,0.00027123,2]
[311366659,1705068649065,-1156.51,0.00027123,2]
[311366661,1705068649074,-3722.52,0.00027123,2]
[311366663,1705068649083,-8597.27,0.00027123,2]
[311366665,1705068649093,-17351.31,0.00027123,2]
[311366667,1705068649102,-534.01,0.00027123,2]
[311366669,1705068649111,-4871.89,0.00027123,2]
[311366671,1705068649120,-856.72,0.00027123,2]
[311366673,1705068649130,-984.16,0.00027123,2]
[311366675,1705068649139,-1516.79,0.00027123,2]
[311366677,1705068649148,-1181.57,0.00027152,2]
[311366679,1705068649158,-515.21,0.00027152,2]
[311366681,1705068649166,-500.0,0.00027152,2]
[311366683,1705068649176,-412.81,0.00027152,2]
[311366684,1705068649185,-760.35,0.00027152,2]
[311366686,1705068649193,-590.71,0.00027152,2]
[311366688,1705068649203,-252.385167,0.00027152,2]
[311366690,1705068649212,-252.385167,0.00027152,2]
[311366692,1705068649221,-1314.18902373,0.000273,4]
[311366695,1705068649240,-204.836,0.00027301,2]
[311366698,1705068649250,-12526.78297423,0.0002735,2]
[311366700,1705068649260,-1480.14,0.00027395,2]
[311366702,1705068649270,-648.16,0.00027395,2]
[311366703,1705068649279,-1224.69,0.00027395,2]
[311366706,1705068649289,-822.93,0.00027395,2]
[311366708,1705068649298,-3196.79,0.00027395,2]
[311366710,1705068649309,-6635.3,0.00027395,2]
[311366712,1705068649318,-3383.51,0.00027395,2]
[311366714,1705068649328,-1223.56,0.00027396,2]
[311366716,1705068649337,-727.08,0.00027396,2]
[311366718,1705068649347,-1145.62,0.00027396,2]
[311366720,1705068649357,-173.09134096,0.00027396,2]
[311366722,1705068649367,-898.870977,0.00027397,2]
[311366724,1705068649377,-898.870977,0.00027397,2]
[311366726,1705068649386,-500.0,0.00027397,2]
[311366728,1705068649396,-500.0,0.00027397,2]
[311366730,1705068649406,-500.0,0.00027397,2]
[311366732,1705068649415,-500.0,0.00027397,2]
[311366734,1705068649424,-500.0,0.00027397,2]
[311366736,1705068649434,-500.0,0.00027397,2]
[311366738,1705068649444,-500.0,0.00027397,2]
[311366740,1705068649454,-500.0,0.00027397,2]
[311366742,1705068649463,-500.0,0.00027397,2]
[311366744,1705068649472,-500.0,0.00027397,2]
[311366746,1705068649481,-500.0,0.00027397,2]
[311366748,1705068649491,-500.0,0.00027397,2]
[311366750,1705068649501,-500.0,0.00027397,2]
[311366752,1705068649511,-500.0,0.00027397,2]
[311366754,1705068649520,-500.0,0.00027397,2]
[311366756,1705068649530,-500.0,0.00027397,2]
[311366758,1705068649539,-228.01640724,0.00027397,2]
[311366760,1705068649549,-507.64157396,0.00027397,2]
[311366762,1705068649560,-500.0,0.00027397,2]
[311366764,1705068649570,-500.0,0.00027397,2]
[311366766,1705068649579,-155.54818529,0.00027397,2]